[Event "Elite Hotels Open 2023"]
[Site "Elite Stadshotellet, Kungsgatan 6, Vaxjo, Sweden"]
[Date "2023.02.10"]
[Round "1.18"]
[White "Johansson, Gunnar"]
[Black "Mollerstrom, Fredrik"]
[Result "1-0"]
[TimeControl "15 minutes + 5 seconds per move from move one (Round 1 - 4) / 90 minutes + 30 seconds per move from move one (Round 5 - 8)"]
[WhiteFideId "1703501"]
[BlackFideId "1721380"]
[WhiteElo "2260"]
[BlackElo "1765"]

1. d4 {[%clk 00:15:07]} {[%emt 00:00:03]} d5 {[%clk 00:15:03]} {[%emt
00:00:08]} 2. c4 {[%clk 00:15:09]} {[%emt 00:00:03]} e6 {[%clk 00:15:01]}
{[%emt 00:00:07]} 3. Nc3 {[%clk 00:15:12]} {[%emt 00:00:02]} Nf6 {[%clk
00:15:05]} {[%emt 00:00:01]} 4. Nf3 {[%clk 00:15:10]} {[%emt 00:00:07]} Be7
{[%clk 00:14:41]} {[%emt 00:00:28]} 5. Bf4 {[%clk 00:15:12]} {[%emt 00:00:04]}
O-O {[%clk 00:14:34]} {[%emt 00:00:12]} 6. e3 {[%clk 00:15:14]} {[%emt
00:00:02]} a6 {[%clk 00:14:16]} {[%emt 00:00:24]} 7. Qc2 {[%clk 00:14:56]}
{[%emt 00:00:23]} dxc4 {[%clk 00:14:02]} {[%emt 00:00:19]} 8. Bxc4 {[%clk
00:14:58]} {[%emt 00:00:03]} b5 {[%clk 00:14:06]} 9. Bd3 {[%clk 00:14:52]}
{[%emt 00:00:10]} Bb7 {[%clk 00:14:04]} {[%emt 00:00:07]} 10. O-O {[%clk
00:14:48]} {[%emt 00:00:09]} Bxf3 {[%clk 00:13:46]} {[%emt 00:00:23]} 11. gxf3
{[%clk 00:14:50]} {[%emt 00:00:03]} c5 {[%clk 00:13:41]} {[%emt 00:00:11]} 12.
dxc5 {[%clk 00:14:32]} {[%emt 00:00:23]} Bxc5 {[%clk 00:13:44]} {[%emt
00:00:02]} 13. Ne4 {[%clk 00:14:19]} {[%emt 00:00:18]} Be7 {[%clk 00:11:08]}
{[%emt 00:02:41]} 14. Nxf6+ Bxf6 {[%clk 00:11:11]} 15. Bxh7+ {[%clk 00:13:48]}
{[%emt 00:00:11]} Kh8 {[%clk 00:11:14]} {[%emt 00:00:02]} 16. Be4 {[%clk
00:13:30]} {[%emt 00:00:23]} Ra7 {[%clk 00:11:14]} {[%emt 00:00:05]} 17. Qc5
{[%clk 00:13:11]} {[%emt 00:00:24]} Rd7 {[%clk 00:10:48]} {[%emt 00:00:31]} 18.
Qh5+ {[%clk 00:13:08]} {[%emt 00:00:08]} 1-0

[Event "Elite Hotels Open 2023"]
[Site "Elite Stadshotellet, Kungsgatan 6, Vaxjo, Sweden"]
[Date "2023.02.10"]
[Round "2.1"]
[White "Galperin, Platon"]
[Black "Mattsson, Michael"]
[Result "1-0"]
[TimeControl "15 minutes + 5 seconds per move from move one (Round 1 - 4) / 90 minutes + 30 seconds per move from move one (Round 5 - 8)"]
[WhiteTitle "GM"]
[WhiteFideId "14165414"]
[BlackFideId "1708961"]
[WhiteElo "2538"]
[BlackElo "2048"]

1. d4 {[%clk 00:15:07]} {[%emt 00:00:03]} Nf6 {[%clk 00:15:09]} {[%emt
00:00:01]} 2. c4 {[%clk 00:15:10]} {[%emt 00:00:03]} e6 {[%clk 00:15:12]}
{[%emt 00:00:02]} 3. Nf3 {[%clk 00:15:11]} {[%emt 00:00:03]} b6 {[%clk
00:15:15]} {[%emt 00:00:02]} 4. g3 {[%clk 00:15:14]} {[%emt 00:00:02]} Ba6
{[%clk 00:15:18]} {[%emt 00:00:03]} 5. Nbd2 {[%clk 00:15:15]} {[%emt 00:00:03]}
d5 {[%clk 00:15:18]} {[%emt 00:00:06]} 6. Bg2 {[%clk 00:15:07]} {[%emt
00:00:12]} c6 {[%clk 00:15:13]} {[%emt 00:00:11]} 7. Qc2 {[%clk 00:15:05]}
{[%emt 00:00:07]} Be7 {[%clk 00:14:45]} {[%emt 00:00:33]} 8. O-O {[%clk
00:15:05]} {[%emt 00:00:04]} O-O {[%clk 00:14:47]} {[%emt 00:00:04]} 9. Ne5
{[%clk 00:14:44]} {[%emt 00:00:26]} Nfd7 {[%clk 00:14:39]} {[%emt 00:00:13]} 10.
Nd3 {[%clk 00:14:41]} {[%emt 00:00:08]} Re8 {[%clk 00:13:58]} {[%emt 00:00:47]}
11. e4 {[%clk 00:14:30]} {[%emt 00:00:15]} Nf8 {[%clk 00:12:43]} {[%emt
00:01:20]} 12. Rd1 {[%clk 00:13:53]} {[%emt 00:00:42]} dxc4 {[%clk 00:11:31]}
{[%emt 00:01:17]} 13. Nxc4 {[%clk 00:13:55]} {[%emt 00:00:03]} Qxd4 {[%clk
00:11:34]} {[%emt 00:00:02]} 14. Nde5 {[%clk 00:13:51]} {[%emt 00:00:08]} Qc5
{[%clk 00:11:30]} {[%emt 00:00:10]} 15. Be3 {[%clk 00:13:19]} {[%emt 00:00:35]}
Qb5 {[%clk 00:10:59]} {[%emt 00:00:38]} 16. a4 {[%clk 00:13:15]} {[%emt
00:00:08]} Qb4 {[%clk 00:11:00]} {[%emt 00:00:05]} 17. Bd2 {[%clk 00:13:16]}
{[%emt 00:00:03]} Qc5 {[%clk 00:10:38]} {[%emt 00:00:28]} 18. b4 {[%clk
00:13:14]} {[%emt 00:00:07]} Qd4 {[%clk 00:10:24]} {[%emt 00:00:19]} 19. Be1
{[%clk 00:13:10]} {[%emt 00:00:07]} Qxa1 {[%clk 00:09:34]} {[%emt 00:00:57]} 20.
Rxa1 {[%clk 00:13:12]} {[%emt 00:00:02]} f6 {[%clk 00:09:36]} {[%emt 00:00:04]}
21. Nd3 {[%clk 00:13:08]} {[%emt 00:00:08]} e5 {[%clk 00:09:33]} {[%emt
00:00:09]} 22. Qb3 {[%clk 00:12:27]} {[%emt 00:00:46]} Kh8 {[%clk 00:09:17]}
{[%emt 00:00:21]} 23. Ncxe5 {[%clk 00:11:08]} {[%emt 00:01:24]} fxe5 {[%clk
00:08:53]} {[%emt 00:00:29]} 24. Nxe5 {[%clk 00:11:09]} {[%emt 00:00:03]} h6
{[%clk 00:08:26]} {[%emt 00:00:32]} 25. Nf7+ {[%clk 00:11:11]} {[%emt
00:00:03]} Kh7 {[%clk 00:08:25]} {[%emt 00:00:06]} 26. e5 {[%clk 00:11:13]}
{[%emt 00:00:03]} g6 {[%clk 00:07:24]} {[%emt 00:01:07]} 27. Nd6 {[%clk
00:10:52]} {[%emt 00:00:26]} 1-0

[Event "Elite Hotels Open 2023"]
[Site "Elite Stadshotellet, Kungsgatan 6, Vaxjo, Sweden"]
[Date "2023.02.10"]
[Round "2.2"]
[White "Goransson, Martin"]
[Black "Sivuk, Vitaly"]
[Result "0-1"]
[TimeControl "15 minutes + 5 seconds per move from move one (Round 1 - 4) / 90 minutes + 30 seconds per move from move one (Round 5 - 8)"]
[BlackTitle "GM"]
[WhiteFideId "1717286"]
[BlackFideId "14116502"]
[WhiteElo "2049"]
[BlackElo "2530"]

1. e4 {[%clk 00:15:09]} c5 {[%clk 00:15:07]} {[%emt 00:00:04]} 2. Nf3 {[%clk
00:15:11]} {[%emt 00:00:02]} d6 {[%clk 00:15:10]} {[%emt 00:00:02]} 3. Bb5+
{[%clk 00:14:59]} {[%emt 00:00:17]} Nd7 {[%clk 00:15:12]} {[%emt 00:00:03]} 4.
Ba4 {[%clk 00:14:54]} {[%emt 00:00:10]} Ngf6 {[%clk 00:15:14]} {[%emt
00:00:03]} 5. O-O {[%clk 00:14:52]} {[%emt 00:00:08]} a6 {[%clk 00:15:05]}
{[%emt 00:00:14]} 6. c4 {[%clk 00:14:03]} {[%emt 00:00:53]} e5 {[%clk
00:15:05]} {[%emt 00:00:05]} 7. Nc3 {[%clk 00:13:57]} {[%emt 00:00:11]} Be7
{[%clk 00:15:07]} {[%emt 00:00:02]} 8. d3 {[%clk 00:13:47]} {[%emt 00:00:16]}
O-O {[%clk 00:15:08]} {[%emt 00:00:04]} 9. a3 {[%clk 00:13:12]} {[%emt
00:00:40]} Nb6 {[%clk 00:14:53]} {[%emt 00:00:20]} 10. Bc2 {[%clk 00:12:02]}
{[%emt 00:01:15]} Bg4 {[%clk 00:14:52]} {[%emt 00:00:05]} 11. Ne2 {[%clk
00:11:20]} {[%emt 00:00:49]} Bxf3 {[%clk 00:14:47]} {[%emt 00:00:10]} 12. gxf3
{[%clk 00:11:24]} Nh5 {[%clk 00:14:33]} {[%emt 00:00:18]} 13. f4 {[%clk
00:11:09]} {[%emt 00:00:20]} exf4 {[%clk 00:13:41]} {[%emt 00:00:57]} 14. Nxf4
{[%clk 00:11:02]} {[%emt 00:00:12]} Nxf4 {[%clk 00:13:44]} {[%emt 00:00:02]} 15.
Bxf4 {[%clk 00:11:05]} {[%emt 00:00:02]} Bf6 {[%clk 00:13:44]} {[%emt
00:00:05]} 16. Rb1 {[%clk 00:10:10]} {[%emt 00:01:01]} Be5 {[%clk 00:13:43]}
{[%emt 00:00:05]} 17. Bg3 {[%clk 00:09:41]} {[%emt 00:00:33]} Nd7 {[%clk
00:13:36]} {[%emt 00:00:12]} 18. f4 {[%clk 00:09:35]} {[%emt 00:00:12]} Bd4+
{[%clk 00:13:39]} {[%emt 00:00:02]} 19. Kh1 {[%clk 00:09:38]} {[%emt 00:00:02]}
b5 {[%clk 00:13:26]} {[%emt 00:00:18]} 20. b4 {[%clk 00:08:38]} {[%emt
00:01:05]} Rb8 {[%clk 00:12:27]} {[%emt 00:01:03]} 21. cxb5 {[%clk 00:07:37]}
{[%emt 00:01:08]} axb5 {[%clk 00:12:30]} {[%emt 00:00:01]} 22. Qg4 {[%clk
00:05:33]} {[%emt 00:02:08]} Ra8 {[%clk 00:09:15]} {[%emt 00:03:21]} 23. bxc5
{[%clk 00:05:14]} {[%emt 00:00:25]} Nxc5 {[%clk 00:09:17]} {[%emt 00:00:02]} 24.
Rxb5 {[%clk 00:03:15]} {[%emt 00:02:05]} Rxa3 {[%clk 00:09:19]} {[%emt
00:00:02]} 25. Bh4 {[%clk 00:02:32]} {[%emt 00:00:49]} Bf6 {[%clk 00:06:24]}
{[%emt 00:02:59]} 26. Rg1 {[%clk 00:02:14]} {[%emt 00:00:23]} g6 {[%clk
00:06:21]} {[%emt 00:00:08]} 27. Bxf6 Qxf6 {[%clk 00:06:24]} 28. e5 {[%clk
00:01:34]} {[%emt 00:00:15]} Qe6 {[%clk 00:05:42]} {[%emt 00:00:46]} 29. Qxe6
{[%clk 00:01:27]} {[%emt 00:00:12]} Nxe6 {[%clk 00:05:45]} {[%emt 00:00:02]} 30.
f5 {[%clk 00:00:31]} {[%emt 00:01:02]} Nd4 {[%clk 00:05:45]} {[%emt 00:00:04]}
31. Rb2 {[%clk 00:00:35]} {[%emt 00:00:01]} dxe5 {[%clk 00:05:45]} {[%emt
00:00:05]} 32. Bb1 {[%clk 00:00:31]} {[%emt 00:00:10]} Nxf5 {[%clk 00:05:44]}
{[%emt 00:00:05]} 33. Rb7 {[%clk 00:00:29]} {[%emt 00:00:08]} Nd4 {[%clk
00:05:30]} {[%emt 00:00:18]} 34. Rf1 {[%clk 00:00:28]} {[%emt 00:00:06]} Ra1
{[%clk 00:05:16]} {[%emt 00:00:18]} 35. Kg2 {[%clk 00:00:27]} {[%emt 00:00:07]}
Ne6 {[%clk 00:05:19]} {[%emt 00:00:03]} 36. Re1 {[%clk 00:00:18]} {[%emt
00:00:14]} Nf4+ {[%clk 00:05:20]} {[%emt 00:00:03]} 37. Kg3 {[%clk 00:00:20]}
{[%emt 00:00:04]} Nxd3 {[%clk 00:03:34]} {[%emt 00:01:51]} 38. Re3 {[%clk
00:00:23]} {[%emt 00:00:02]} Nc5 {[%clk 00:03:29]} {[%emt 00:00:10]} 39. Rb5
{[%clk 00:00:14]} {[%emt 00:00:13]} Rc8 {[%clk 00:03:11]} {[%emt 00:00:23]} 40.
Rxe5 {[%clk 00:00:13]} {[%emt 00:00:06]} Ra3+ {[%clk 00:03:12]} {[%emt
00:00:03]} 41. Kh4 {[%clk 00:00:17]} {[%emt 00:00:03]} Ne6 {[%clk 00:03:03]}
{[%emt 00:00:14]} 42. Rb4 {[%clk 00:00:16]} {[%emt 00:00:06]} Rcc3 {[%clk
00:02:58]} {[%emt 00:00:09]} 0-1

[Event "Elite Hotels Open 2023"]
[Site "Elite Stadshotellet, Kungsgatan 6, Vaxjo, Sweden"]
[Date "2023.02.10"]
[Round "2.3"]
[White "Abdrlauf, Elham"]
[Black "Mashhadi, Peyman"]
[Result "1-0"]
[TimeControl "15 minutes + 5 seconds per move from move one (Round 1 - 4) / 90 minutes + 30 seconds per move from move one (Round 5 - 8)"]
[WhiteTitle "IM"]
[WhiteFideId "1533533"]
[BlackFideId "1768581"]
[WhiteElo "2527"]
[BlackElo "2018"]

1. e4 {[%clk 00:15:08]} e6 {[%clk 00:15:07]} {[%emt 00:00:04]} 2. d4 {[%clk
00:15:11]} {[%emt 00:00:02]} d5 {[%clk 00:15:08]} {[%emt 00:00:04]} 3. Nc3
{[%clk 00:15:14]} {[%emt 00:00:02]} Nf6 {[%clk 00:15:09]} {[%emt 00:00:04]} 4.
Bg5 {[%clk 00:15:17]} {[%emt 00:00:02]} Be7 {[%clk 00:15:09]} {[%emt 00:00:06]}
5. e5 {[%clk 00:15:19]} {[%emt 00:00:02]} Nfd7 {[%clk 00:15:11]} {[%emt
00:00:04]} 6. h4 {[%clk 00:15:10]} {[%emt 00:00:12]} a6 {[%clk 00:15:01]}
{[%emt 00:00:16]} 7. Qg4 {[%clk 00:14:10]} {[%emt 00:01:04]} g6 {[%clk
00:13:06]} {[%emt 00:02:01]} 8. Nf3 {[%clk 00:13:16]} {[%emt 00:00:59]} h6
{[%clk 00:12:23]} {[%emt 00:00:48]} 9. Bxe7 {[%clk 00:12:51]} {[%emt 00:00:30]}
Qxe7 {[%clk 00:12:24]} {[%emt 00:00:04]} 10. O-O-O {[%clk 00:11:14]} {[%emt
00:01:43]} c5 {[%clk 00:12:09]} {[%emt 00:00:20]} 11. dxc5 {[%clk 00:11:13]}
{[%emt 00:00:06]} Nc6 {[%clk 00:11:34]} {[%emt 00:00:40]} 12. Qf4 {[%clk
00:09:14]} {[%emt 00:02:03]} Nxc5 {[%clk 00:11:01]} {[%emt 00:00:38]} 13. Bd3
{[%clk 00:08:20]} {[%emt 00:00:58]} b5 {[%clk 00:10:01]} {[%emt 00:01:06]} 14.
Ne2 {[%clk 00:08:04]} {[%emt 00:00:21]} Bb7 {[%clk 00:09:26]} {[%emt 00:00:40]}
15. Kb1 {[%clk 00:07:39]} {[%emt 00:00:29]} Na5 {[%clk 00:08:09]} {[%emt
00:01:23]} 16. Ned4 {[%clk 00:05:52]} {[%emt 00:01:53]} Nc4 {[%clk 00:07:40]}
{[%emt 00:00:33]} 17. Bxc4 {[%clk 00:04:49]} {[%emt 00:01:08]} bxc4 {[%clk
00:07:20]} {[%emt 00:00:25]} 18. Qe3 {[%clk 00:04:23]} {[%emt 00:00:32]} Rb8
{[%clk 00:05:59]} {[%emt 00:01:26]} 19. Ka1 {[%clk 00:03:27]} {[%emt 00:01:01]}
Ne4 {[%clk 00:05:08]} {[%emt 00:00:56]} 20. Nd2 {[%clk 00:02:15]} {[%emt
00:01:16]} Nc5 {[%clk 00:03:53]} {[%emt 00:01:20]} 21. Rb1 {[%clk 00:01:59]}
{[%emt 00:00:21]} Na4 {[%clk 00:03:30]} {[%emt 00:00:28]} 22. b3 {[%clk
00:01:08]} {[%emt 00:00:56]} Nc5 {[%clk 00:01:48]} {[%emt 00:01:47]} 23. bxc4
{[%clk 00:01:05]} {[%emt 00:00:08]} O-O {[%clk 00:01:23]} {[%emt 00:00:30]} 24.
Qxh6 {[%clk 00:00:59]} {[%emt 00:00:11]} Ne4 {[%clk 00:00:59]} {[%emt
00:00:30]} 25. Nxe4 {[%clk 00:00:50]} {[%emt 00:00:13]} dxe4 {[%clk 00:01:03]}
{[%emt 00:00:02]} 26. h5 {[%clk 00:00:42]} {[%emt 00:00:13]} g5 {[%clk
00:01:07]} {[%emt 00:00:01]} 27. Qf6 {[%clk 00:00:31]} {[%emt 00:00:15]} Qxf6
{[%clk 00:01:00]} {[%emt 00:00:12]} 28. exf6 {[%clk 00:00:35]} Rfd8 {[%clk
00:00:42]} {[%emt 00:00:23]} 29. c3 {[%clk 00:00:29]} {[%emt 00:00:11]} e3
{[%clk 00:00:28]} {[%emt 00:00:20]} 30. fxe3 {[%clk 00:00:29]} {[%emt
00:00:05]} Be4 {[%clk 00:00:31]} {[%emt 00:00:02]} 31. Rxb8 {[%clk 00:00:19]}
{[%emt 00:00:15]} Rxb8 {[%clk 00:00:35]} {[%emt 00:00:01]} 32. c5 {[%clk
00:00:23]} {[%emt 00:00:01]} a5 {[%clk 00:00:27]} {[%emt 00:00:13]} 33. a4
{[%clk 00:00:09]} {[%emt 00:00:19]} e5 {[%clk 00:00:25]} {[%emt 00:00:07]} 34.
Nb5 {[%clk 00:00:09]} {[%emt 00:00:04]} Bc6 {[%clk 00:00:16]} {[%emt 00:00:15]}
35. h6 {[%clk 00:00:08]} {[%emt 00:00:06]} Kh7 {[%clk 00:00:14]} {[%emt
00:00:06]} 36. Rd1 {[%clk 00:00:07]} {[%emt 00:00:07]} Bxb5 {[%clk 00:00:11]}
{[%emt 00:00:07]} 37. Rb1 {[%clk 00:00:11]} {[%emt 00:00:01]} Rb6 {[%clk
00:00:13]} {[%emt 00:00:04]} 38. cxb6 {[%clk 00:00:12]} {[%emt 00:00:04]} 1-0

[Event "Elite Hotels Open 2023"]
[Site "Elite Stadshotellet, Kungsgatan 6, Vaxjo, Sweden"]
[Date "2023.02.10"]
[Round "2.4"]
[White "Bouaziz, Nejib"]
[Black "Hillarp, Tiger"]
[Result "0-1"]
[TimeControl "15 minutes + 5 seconds per move from move one (Round 1 - 4) / 90 minutes + 30 seconds per move from move one (Round 5 - 8)"]
[BlackTitle "GM"]
[WhiteFideId "1704915"]
[BlackFideId "1700812"]
[WhiteElo "2046"]
[BlackElo "2511"]

1. e4 {[%clk 00:15:08]} {[%emt 00:00:02]} g6 {[%clk 00:15:03]} {[%emt
00:00:08]} 2. Nf3 {[%clk 00:15:08]} {[%emt 00:00:04]} Bg7 {[%clk 00:15:06]}
{[%emt 00:00:02]} 3. Bc4 {[%clk 00:15:03]} {[%emt 00:00:10]} e6 {[%clk
00:15:07]} {[%emt 00:00:04]} 4. O-O {[%clk 00:14:56]} {[%emt 00:00:12]} Ne7
{[%clk 00:15:10]} {[%emt 00:00:02]} 5. Nc3 {[%clk 00:14:54]} {[%emt 00:00:07]}
O-O {[%clk 00:15:12]} {[%emt 00:00:03]} 6. d4 {[%clk 00:14:49]} {[%emt
00:00:10]} d5 {[%clk 00:15:12]} {[%emt 00:00:06]} 7. Be2 {[%clk 00:13:52]}
{[%emt 00:01:00]} h6 {[%clk 00:14:59]} {[%emt 00:00:18]} 8. Re1 {[%clk
00:12:56]} {[%emt 00:01:01]} b6 {[%clk 00:14:44]} {[%emt 00:00:21]} 9. a4
{[%clk 00:12:24]} {[%emt 00:00:37]} Bb7 {[%clk 00:13:31]} {[%emt 00:01:17]} 10.
Bf1 {[%clk 00:12:05]} {[%emt 00:00:24]} dxe4 {[%clk 00:13:15]} {[%emt
00:00:21]} 11. Nxe4 {[%clk 00:12:06]} {[%emt 00:00:03]} c5 {[%emt 00:00:05]} 12.
c3 {[%clk 00:11:45]} {[%emt 00:00:24]} Nf5 {[%clk 00:13:03]} {[%emt 00:00:21]}
13. Ng3 {[%clk 00:11:21]} {[%emt 00:00:28]} cxd4 {[%clk 00:12:37]} {[%emt
00:00:31]} 14. Nxf5 {[%clk 00:11:20]} {[%emt 00:00:07]} gxf5 {[%clk 00:12:40]}
{[%emt 00:00:02]} 15. cxd4 {[%clk 00:10:57]} {[%emt 00:00:28]} Nd7 {[%clk
00:12:44]} {[%emt 00:00:01]} 16. Bf4 {[%clk 00:10:03]} {[%emt 00:00:58]} Nf6
{[%clk 00:12:47]} 17. Rc1 {[%clk 00:09:29]} {[%emt 00:00:42]} Nd5 {[%clk
00:12:29]} {[%emt 00:00:23]} 18. Qd2 {[%clk 00:07:31]} {[%emt 00:02:03]} Kh7
{[%clk 00:11:43]} {[%emt 00:00:50]} 19. Ne5 {[%clk 00:06:24]} {[%emt 00:01:12]}
Qe7 {[%clk 00:11:23]} {[%emt 00:00:26]} 20. Nc6 {[%clk 00:05:57]} {[%emt
00:00:32]} Qf6 {[%clk 00:10:24]} {[%emt 00:01:03]} 21. Be5 {[%clk 00:04:50]}
{[%emt 00:01:12]} Qg6 {[%clk 00:10:18]} {[%emt 00:00:11]} 22. Bxg7 {[%clk
00:04:46]} {[%emt 00:00:09]} Qxg7 {[%clk 00:10:21]} {[%emt 00:00:03]} 23. Nb4
{[%clk 00:04:39]} {[%emt 00:00:12]} Nxb4 {[%clk 00:09:54]} {[%emt 00:00:31]} 24.
Qxb4 {[%clk 00:04:41]} {[%emt 00:00:03]} Bxg2 {[%clk 00:09:48]} {[%emt
00:00:12]} 25. Rc3 {[%clk 00:04:35]} {[%emt 00:00:11]} Bf3+ {[%clk 00:09:49]}
{[%emt 00:00:04]} 0-1

[Event "Elite Hotels Open 2023"]
[Site "Elite Stadshotellet, Kungsgatan 6, Vaxjo, Sweden"]
[Date "2023.02.10"]
[Round "2.5"]
[White "Blomqvist, Erik"]
[Black "Arvidsson, Erik"]
[Result "1-0"]
[TimeControl "15 minutes + 5 seconds per move from move one (Round 1 - 4) / 90 minutes + 30 seconds per move from move one (Round 5 - 8)"]
[WhiteTitle "GM"]
[WhiteFideId "1709437"]
[BlackFideId "1718045"]
[WhiteElo "2510"]
[BlackElo "2002"]

1. d4 {[%clk 00:15:08]} {[%emt 00:00:01]} d5 {[%clk 00:15:06]} {[%emt
00:00:05]} 2. Bf4 {[%clk 00:15:11]} {[%emt 00:00:01]} Nf6 {[%clk 00:15:08]}
{[%emt 00:00:04]} 3. e3 {[%clk 00:15:15]} {[%emt 00:00:02]} c5 {[%clk
00:14:44]} {[%emt 00:00:27]} 4. Nf3 {[%clk 00:15:13]} {[%emt 00:00:07]} Bg4
{[%clk 00:14:35]} {[%emt 00:00:16]} 5. Nbd2 {[%clk 00:14:58]} {[%emt 00:00:18]}
e6 {[%clk 00:14:20]} {[%emt 00:00:20]} 6. h3 {[%clk 00:14:58]} {[%emt
00:00:05]} Bh5 {[%clk 00:14:21]} {[%emt 00:00:04]} 7. c3 {[%clk 00:13:46]}
{[%emt 00:01:18]} Nbd7 {[%clk 00:13:24]} {[%emt 00:01:02]} 8. g4 {[%clk
00:13:14]} {[%emt 00:00:37]} Bg6 {[%clk 00:13:19]} {[%emt 00:00:09]} 9. Nh4
{[%clk 00:13:11]} {[%emt 00:00:08]} Be4 {[%clk 00:12:40]} {[%emt 00:00:45]} 10.
f3 {[%clk 00:12:49]} {[%emt 00:00:27]} Bg6 {[%clk 00:12:36]} {[%emt 00:00:08]}
11. Nxg6 {[%clk 00:12:14]} {[%emt 00:00:41]} hxg6 {[%clk 00:12:38]} {[%emt
00:00:03]} 12. Bd3 {[%clk 00:11:44]} {[%emt 00:00:34]} Rc8 {[%clk 00:11:58]}
{[%emt 00:00:45]} 13. Kf2 {[%clk 00:11:20]} {[%emt 00:00:30]} Be7 {[%clk
00:11:26]} {[%emt 00:00:37]} 14. Kg2 {[%clk 00:11:20]} {[%emt 00:00:05]} cxd4
{[%clk 00:10:50]} {[%emt 00:00:41]} 15. exd4 {[%clk 00:11:13]} {[%emt
00:00:11]} Nb6 {[%clk 00:10:24]} {[%emt 00:00:32]} 16. Qe2 {[%clk 00:10:44]}
{[%emt 00:00:33]} Kf8 {[%clk 00:09:55]} {[%emt 00:00:34]} 17. h4 {[%clk
00:10:32]} {[%emt 00:00:18]} Bd6 {[%clk 00:09:48]} {[%emt 00:00:11]} 18. Bg5
{[%clk 00:10:19]} {[%emt 00:00:19]} Qd7 {[%clk 00:09:31]} {[%emt 00:00:22]} 19.
h5 {[%clk 00:09:38]} {[%emt 00:00:46]} gxh5 {[%clk 00:09:28]} {[%emt 00:00:08]}
20. gxh5 {[%clk 00:09:42]} {[%emt 00:00:01]} Nxh5 {[%clk 00:08:48]} {[%emt
00:00:45]} 21. f4 {[%clk 00:09:08]} {[%emt 00:00:38]} g6 {[%clk 00:07:47]}
{[%emt 00:01:06]} 22. Nf3 {[%clk 00:08:43]} {[%emt 00:00:30]} Qc7 {[%clk
00:06:37]} {[%emt 00:01:15]} 23. Ne5 {[%clk 00:08:34]} {[%emt 00:00:15]} Kg7
{[%clk 00:06:10]} {[%emt 00:00:31]} 24. Nxg6 {[%clk 00:07:49]} {[%emt
00:00:51]} fxg6 {[%clk 00:05:45]} {[%emt 00:00:30]} 25. Qxe6 {[%clk 00:07:51]}
{[%emt 00:00:02]} Qf7 {[%clk 00:04:26]} {[%emt 00:01:25]} 26. Qxd6 {[%clk
00:07:53]} {[%emt 00:00:04]} Rhe8 {[%clk 00:03:56]} {[%emt 00:00:34]} 27. f5
{[%clk 00:04:12]} {[%emt 00:03:45]} Rc6 {[%clk 00:03:04]} {[%emt 00:00:58]} 28.
Qh2 {[%clk 00:04:15]} {[%emt 00:00:02]} Nc4 {[%clk 00:02:05]} {[%emt 00:01:04]}
29. Rae1 {[%clk 00:03:31]} {[%emt 00:00:49]} Rxe1 {[%clk 00:01:47]} {[%emt
00:00:23]} 30. Rxe1 {[%clk 00:03:34]} {[%emt 00:00:02]} Nf6 {[%clk 00:00:40]}
{[%emt 00:01:12]} 31. fxg6 {[%clk 00:03:27]} {[%emt 00:00:11]} Qd7 {[%clk
00:00:29]} {[%emt 00:00:15]} 32. Bxf6+ {[%clk 00:03:00]} {[%emt 00:00:34]} Kxf6
{[%clk 00:00:21]} {[%emt 00:00:13]} 33. Qh4+ {[%clk 00:02:56]} {[%emt
00:00:08]} 1-0